fUST/lending_fUST_20250806
["ID","MTS","AMOUNT","RATE_DAILY","PERIOD"]
[377504047,1754431853704,-507.15,0.00029589,2]
[377504048,1754431853714,-460.0,0.00029589,2]
[377504049,1754431853724,-608.88760682,0.00029589,2]
[377504050,1754431853734,-460.0,0.00029589,2]
[377504051,1754431853744,-273.45,0.00029589,2]
[377504052,1754431853754,-460.0,0.00029589,2]
[377504053,1754431853764,-460.0,0.00029589,2]
[377504054,1754431853774,-779.31,0.00029589,2]
[377504055,1754431853784,-539.44,0.00029589,2]
[377504056,1754431853795,-297.89146792,0.00029589,2]
[377504057,1754431853805,-811.05,0.00029589,2]
[377504058,1754431853814,-666.18,0.00029589,2]
[377504059,1754431853824,-460.0,0.00029589,2]
[377504060,1754431853834,-460.0,0.00029589,2]
[377504061,1754431853844,-460.0,0.00029589,2]
[377504062,1754431853854,-508.94,0.00029589,2]
[377504063,1754431853864,-460.0,0.00029589,2]
[377504064,1754431853876,-1509.46,0.00029589,2]
[377504065,1754431853887,-478.29593608,0.00029589,2]
[377504066,1754431853897,-1198.06,0.00029589,2]
[377504067,1754431853907,-460.0,0.00029589,2]
[377504068,1754431853917,-460.0,0.00029589,2]
[377504069,1754431853927,-1256.79,0.00029589,2]
[377504070,1754431853938,-513.01,0.00029589,2]
[377504071,1754431853947,-1226.22,0.00029589,2]
[377504072,1754431853957,-460.0,0.00029589,2]
[377504073,1754431853968,-1680.96,0.00029589,2]
[377504074,1754431853981,-460.0,0.00029589,2]
[377504075,1754431853994,-4138.95,0.00029589,2]
[377504076,1754431854004,-682.07,0.00029589,2]
[377504077,1754431854015,-460.0,0.00029589,2]
[377504078,1754431854026,-1235.39,0.00029589,2]
[377504079,1754431854035,-898.9,0.00029589,2]
[377504080,1754431854046,-666.47,0.00029589,2]
[377504081,1754431854056,-510.88,0.00029589,2]
[377504082,1754431854066,-815.14,0.00029589,2]
[377504083,1754431854076,-460.0,0.00029589,2]
[377504084,1754431854088,-2003.68,0.00029589,2]
[377504085,1754431854098,-460.0,0.00029589,2]
[377504086,1754431854109,-3527.46,0.00029589,2]
[377504087,1754431854119,-1626.32,0.00029589,2]
[377504088,1754431854129,-1135.93,0.00029589,2]
[377504089,1754431854139,-460.0,0.00029589,2]
[377504090,1754431854149,-460.0,0.00029589,2]
[377504091,1754431854159,-917.23,0.00029589,2]
[377504092,1754431854169,-1085.69,0.00029589,2]
[377504093,1754431854179,-973.3,0.00029589,2]
[377504094,1754431854190,-460.0,0.00029589,2]
[377504095,1754431854200,-553.1,0.00029589,2]
[377504096,1754431854210,-460.0,0.00029589,2]
[377504097,1754431854220,-486.78,0.00029589,2]
[377504098,1754431854230,-747.74,0.00029589,2]
[377504099,1754431854240,-532.48,0.00029589,2]
[377504100,1754431854250,-460.0,0.00029589,2]
[377504101,1754431854260,-1007.23,0.00029589,2]
[377504102,1754431854271,-601.66,0.00029589,2]
[377504103,1754431854281,-528.98,0.00029589,2]
[377504104,1754431854291,-1770.4,0.00029589,2]
[377504105,1754431854301,-460.0,0.00029589,2]
[377504106,1754431854311,-460.0,0.00029589,2]
[377504107,1754431854320,-487.8,0.00029589,2]
[377504108,1754431854330,-5087.1,0.00029589,2]
[377504109,1754431854340,-1298.86,0.00029589,2]
[377504110,1754431854350,-698.53,0.00029589,2]
[377504111,1754431854360,-516.52770387,0.00029589,2]
[377504112,1754431854370,-460.0,0.00029589,2]
[377504113,1754431854379,-1105.85,0.00029589,2]
[377504114,1754431854389,-460.0,0.00029589,2]
[377504115,1754431854399,-710.96,0.00029589,2]
[377504116,1754431854409,-734.88,0.00029589,2]
[377504117,1754431854421,-1000.0,0.000297,6]
[377504118,1754431854431,-1000.0,0.00029715,5]
[377504119,1754431854443,-460.0,0.00029863,2]
[377504120,1754431854455,-1157.28,0.00029863,2]
[377504121,1754431854465,-644.64,0.00029863,2]
[377504122,1754431854475,-1285.85,0.00029863,2]
[377504123,1754431854492,-775.72,0.00029863,2]
[377504124,1754431854508,-460.0,0.00029863,2]
[377504125,1754431854522,-993.1,0.00029863,2]
[377504126,1754431854718,-656.82,0.00029863,2]
[377504127,1754431854743,-460.0,0.00029863,2]
[377504128,1754431854754,-1173.62,0.00029863,2]
[377504129,1754431854764,-357.48355586,0.00029863,2]
[377504130,1754431854774,-2378.29,0.00029863,2]
[377504131,1754431854786,-707.59,0.00029863,2]
[377504132,1754431854796,-500.0,0.00029863,2]
[377504133,1754431854807,-460.0,0.00029863,2]
[377504134,1754431854818,-460.0,0.00029863,2]
[377504135,1754431854827,-460.0,0.00029863,2]
[377504136,1754431854836,-166.9,0.00029863,2]
[377504137,1754431854845,-460.0,0.00029863,2]
[377504138,1754431854855,-779.31,0.00029863,2]
[377504139,1754431854864,-811.05,0.00029863,2]
[377504140,1754431854875,-666.18,0.00029863,2]
[377504141,1754431854885,-460.0,0.00029863,2]
[377504142,1754431854895,-460.0,0.00029863,2]
[377504143,1754431854904,-482.93708318,0.00029863,2]
[377504144,1754431854914,-508.94,0.00029863,2]
[377504145,1754431854923,-460.0,0.00029863,2]
[377504146,1754431854934,-1509.46,0.00029863,2]
[377504147,1754431854943,-1198.06,0.00029863,2]
[377504148,1754431854952,-460.0,0.00029863,2]
[377504149,1754431854962,-460.0,0.00029863,2]
[377504150,1754431854972,-1256.79,0.00029863,2]
[377504151,1754431854981,-513.01,0.00029863,2]
[377504152,1754431854990,-1226.22,0.00029863,2]
[377504153,1754431854999,-460.0,0.00029863,2]
[377504154,1754431855008,-1680.96,0.00029863,2]
[377504155,1754431855018,-460.0,0.00029863,2]
[377504156,1754431855027,-4138.95,0.00029863,2]
[377504157,1754431855036,-682.07,0.00029863,2]
[377504158,1754431855046,-460.0,0.00029863,2]
[377504159,1754431855055,-1235.39,0.00029863,2]
[377504160,1754431855065,-898.9,0.00029863,2]
[377504161,1754431855074,-666.47,0.00029863,2]
[377504162,1754431855083,-510.88,0.00029863,2]
[377504163,1754431855094,-815.14,0.00029863,2]
[377504164,1754431855104,-460.0,0.00029863,2]
[377504165,1754431855114,-2003.68,0.00029863,2]
[377504166,1754431855123,-460.0,0.00029863,2]
[377504167,1754431855134,-3527.46,0.00029863,2]
[377504168,1754431855143,-1626.32,0.00029863,2]
[377504169,1754431855152,-1135.93,0.00029863,2]
[377504170,1754431855162,-460.0,0.00029863,2]
[377504171,1754431855171,-917.23,0.00029863,2]
[377504172,1754431855180,-1085.69,0.00029863,2]
[377504173,1754431855189,-973.3,0.00029863,2]
[377504174,1754431855198,-460.0,0.00029863,2]
[377504175,1754431855209,-553.1,0.00029863,2]
[377504176,1754431855220,-460.0,0.00029863,2]
[377504177,1754431855229,-486.78,0.00029863,2]
[377504178,1754431855238,-747.74,0.00029863,2]
[377504179,1754431855248,-532.48,0.00029863,2]
[377504180,1754431855257,-460.0,0.00029863,2]
[377504181,1754431855267,-1007.23,0.00029863,2]
[377504182,1754431855276,-601.66,0.00029863,2]
[377504183,1754431855285,-528.98,0.00029863,2]
[377504184,1754431855295,-1770.4,0.00029863,2]
[377504185,1754431855304,-460.0,0.00029863,2]
[377504186,1754431855313,-460.0,0.00029863,2]
[377504187,1754431855322,-487.8,0.00029863,2]
[377504188,1754431855331,-5087.1,0.00029863,2]
[377504189,1754431855341,-1298.86,0.00029863,2]
[377504190,1754431855350,-698.53,0.00029863,2]
[377504191,1754431855359,-244.14233829,0.00029863,2]
[377504192,1754431855377,-1105.85,0.00029863,2]
[377504193,1754431855387,-472.67347861,0.00029863,2]
[377504194,1754431855396,-710.96,0.00029863,2]
[377504195,1754431855406,-13390.37932746,0.00029923,13]
[377504196,1754431855415,-200.0,0.00029985,5]
[377504197,1754431855426,-4000.0,0.0003,4]
[377504198,1754431855436,-560.0,0.00030022,2]
[377504199,1754431855450,-565.91,0.00030047,2]
[377504200,1754431855460,-369.36591304,0.00030073,2]
[377504201,1754431855469,-2820.64368534,0.00030112,5]
[377504202,1754431855479,-217.11075,0.0003013,5]
[377504203,1754431855491,-460.0,0.00030136,2]
[377504204,1754431855501,-1157.28,0.00030136,2]
[377504205,1754431855511,-644.64,0.00030136,2]
[377504206,1754431855521,-1285.85,0.00030136,2]
[377504207,1754431855532,-775.72,0.00030136,2]
[377504208,1754431855542,-460.0,0.00030136,2]
[377504209,1754431855552,-993.1,0.00030136,2]
[377504210,1754431855561,-656.82,0.00030136,2]
[377504211,1754431855570,-460.0,0.00030136,2]
[377504212,1754431855579,-1173.62,0.00030136,2]
[377504213,1754431855589,-2378.29,0.00030136,2]
[377504214,1754431855599,-707.59,0.00030136,2]
[377504215,1754431855608,-500.0,0.00030136,2]
[377504216,1754431855618,-460.0,0.00030136,2]
[377504217,1754431855627,-460.0,0.00030136,2]
[377504218,1754431855636,-460.0,0.00030136,2]
[377504219,1754431855645,-460.0,0.00030136,2]
[377504220,1754431855654,-779.31,0.00030136,2]
[377504221,1754431855663,-811.05,0.00030136,2]
[377504222,1754431855673,-666.18,0.00030136,2]
[377504223,1754431855682,-460.0,0.00030136,2]
[377504224,1754431855691,-460.0,0.00030136,2]
[377504225,1754431855700,-508.94,0.00030136,2]
[377504226,1754431855709,-460.0,0.00030136,2]
[377504227,1754431855719,-1509.46,0.00030136,2]
[377504228,1754431855728,-1198.06,0.00030136,2]
[377504229,1754431855737,-460.0,0.00030136,2]
[377504230,1754431855747,-460.0,0.00030136,2]
[377504231,1754431855756,-1256.79,0.00030136,2]
[377504232,1754431855765,-513.01,0.00030136,2]
[377504233,1754431855775,-1226.22,0.00030136,2]
[377504234,1754431855784,-460.0,0.00030136,2]
[377504235,1754431855794,-1680.96,0.00030136,2]
[377504236,1754431855803,-460.0,0.00030136,2]
[377504237,1754431855812,-682.07,0.00030136,2]
[377504238,1754431855822,-4138.95,0.00030136,2]
[377504239,1754431855831,-460.0,0.00030136,2]
[377504240,1754431855840,-1235.39,0.00030136,2]
[377504241,1754431855849,-898.9,0.00030136,2]
[377504242,1754431855859,-666.47,0.00030136,2]
[377504243,1754431855868,-510.88,0.00030136,2]
[377504244,1754431855877,-815.14,0.00030136,2]
[377504245,1754431855887,-460.0,0.00030136,2]
[377504246,1754431855897,-2003.68,0.00030136,2]
[377504247,1754431855907,-460.0,0.00030136,2]
[377504248,1754431855916,-3527.46,0.00030136,2]
[377504249,1754431855926,-1626.32,0.00030136,2]
[377504250,1754431855937,-1135.93,0.00030136,2]
[377504251,1754431855947,-460.0,0.00030136,2]
[377504252,1754431855956,-917.23,0.00030136,2]
[377504253,1754431855966,-1085.69,0.00030136,2]
[377504254,1754431855976,-973.3,0.00030136,2]
[377504255,1754431855985,-460.0,0.00030136,2]
[377504256,1754431855995,-553.1,0.00030136,2]
[377504257,1754431856004,-460.0,0.00030136,2]
[377504258,1754431856014,-486.78,0.00030136,2]
[377504259,1754431856023,-747.74,0.00030136,2]
[377504260,1754431856033,-532.48,0.00030136,2]
[377504261,1754431856042,-460.0,0.00030136,2]
[377504262,1754431856051,-1007.23,0.00030136,2]
[377504263,1754431856060,-601.66,0.00030136,2]
[377504264,1754431856070,-528.98,0.00030136,2]
[377504265,1754431856079,-1770.4,0.00030136,2]
[377504266,1754431856089,-460.0,0.00030136,2]
[377504267,1754431856100,-460.0,0.00030136,2]
[377504268,1754431856109,-487.8,0.00030136,2]
[377504269,1754431856118,-5087.1,0.00030136,2]
[377504270,1754431856127,-698.53,0.00030136,2]
[377504271,1754431856138,-1298.86,0.00030136,2]
[377504272,1754431856147,-1105.85,0.00030136,2]
[377504273,1754431856157,-710.96,0.00030136,2]
[377504274,1754431856166,-54614.5168398,0.00030137,2]
[377504275,1754431856175,-160.3162146,0.00030173,30]
[377504276,1754431856185,-578.9513623,0.00030173,30]
[377504277,1754431856194,-578.9513623,0.00030173,30]
[377504278,1754431856203,-292.9155566,0.00030173,30]
[377504279,1754431856212,-442.3190873,0.00030173,30]
[377504280,1754431856221,-292.9155566,0.00030173,30]
[377504281,1754431856230,-292.9155566,0.00030173,30]
[377504282,1754431856239,-585.8311132,0.00030173,30]
[377504283,1754431856249,-578.9513623,0.00030195,30]
[377504284,1754431856258,-292.9155566,0.00030195,30]
[377504285,1754431856267,-160.3162146,0.00030195,30]
[377504286,1754431856276,-160.3162146,0.00030195,30]
[377504287,1754431856285,-292.9155566,0.00030195,30]
[377504288,1754431856294,-578.9513623,0.00030195,30]
[377504289,1754431856304,-292.9155566,0.00030195,30]
[377504290,1754431856313,-578.9513623,0.00030195,30]
[377504291,1754431856323,-160.3162146,0.00030195,30]
[377504292,1754431856332,-160.3162146,0.00030195,30]
[377504293,1754431856342,-292.9155566,0.00030195,30]
[377504294,1754431856351,-578.9513623,0.00030195,30]
[377504295,1754431856361,-292.9155566,0.00030195,30]
[377504296,1754431856370,-160.3162146,0.00030195,30]
[377504297,1754431856381,-578.9513623,0.00030195,30]
[377504298,1754431856390,-578.9513623,0.00030195,30]
[377504299,1754431856400,-160.3162146,0.00030195,30]
[377504300,1754431856409,-292.9155566,0.00030195,30]
[377504301,1754431856419,-578.9513623,0.00030195,30]
[377504302,1754431856429,-578.9513623,0.00030195,30]
[377504303,1754431856440,-160.3162146,0.00030195,30]
[377504304,1754431856452,-292.9155566,0.00030195,30]
[377504305,1754431856461,-585.8311132,0.00030195,30]
[377504306,1754431856470,-1157.9027246,0.00030195,30]
[377504307,1754431856479,-292.9155566,0.00030195,30]
[377504308,1754431856489,-578.9513623,0.00030195,30]
[377504309,1754431856499,-578.2407573,0.00030195,30]
[377504310,1754431856508,-292.9155566,0.00030195,30]
[377504311,1754431856518,-292.9155566,0.00030195,30]
[377504312,1754431856528,-682.4013482,0.00030195,30]
[377504313,1754431856537,-156.7680326,0.00030195,30]
[377504314,1754431856546,-153.0,0.00030195,30]
[377504315,1754431856555,-153.0,0.00030195,30]
[377504316,1754431856565,-538.56345926,0.000302,7]
[377504317,1754431856574,-1000.0,0.000302,6]
[377504318,1754431856584,-12655.02535889,0.000302,30]
[377504319,1754431856593,-312.16666667,0.000302,30]
[377504320,1754431856602,-216.4206905,0.000302,30]
[377504321,1754431856611,-842.25606042,0.000302,30]
[377504322,1754431856620,-461.15695721,0.000302,30]
[377504323,1754431856630,-527.3554621,0.000302,30]
[377504324,1754431856639,-1774.78038869,0.00030235,2]
[377504325,1754431856649,-162.11134969,0.0003033,2]
[377504326,1754431856660,-500.82773618,0.00030373,5]
[377504327,1754431856670,-160.76663723,0.00030399,10]
[377504328,1754431856680,-198005.47876569,0.000304,4]
[377504329,1754431857191,-89.98454094,0.00027397,2]
[377504330,1754431857554,-500.153338,0.00026535,2]
[377504331,1754431857564,-370.01545906,0.00027397,2]
[377504332,1754431857574,-460.0,0.00027397,2]
[377504333,1754431857585,-460.0,0.00027397,2]
[377504334,1754431857595,-460.0,0.00027397,2]
[377504335,1754431857605,-460.0,0.00027671,2]
[377504336,1754431857616,-460.0,0.00027671,2]
[377504337,1754431857627,-460.0,0.00027671,2]
[377504338,1754431857640,-460.0,0.00027671,2]
[377504339,1754431857650,-460.0,0.00027945,2]
[377504340,1754431857660,-460.0,0.00027945,2]
[377504341,1754431857670,-460.0,0.00027945,2]
[377504342,1754431857680,-460.0,0.00028219,2]
[377504343,1754431857690,-232.73,0.00028219,2]
[377504344,1754431857700,-460.0,0.00028493,2]
[377504345,1754431857710,-460.0,0.00028493,2]
[377504346,1754431857721,-61.30120264,0.00028767,2]
[377504347,1754431857734,-398.69879736,0.00028767,2]
[377504348,1754431857745,-460.0,0.00028767,2]
[377504349,1754431857756,-20.2389158,0.00029041,2]
[377504350,1754431857768,-439.7610842,0.00029041,2]
[377504351,1754431857777,-151.0,0.00029213,2]
[377504352,1754431857787,-151.0,0.00029213,2]
[377504353,1754431857798,-460.0,0.00029315,2]
[377504354,1754431857807,-292.9155566,0.00029373,30]
[377504355,1754431857816,-460.0,0.00029589,2]
[377504356,1754431857826,-460.0,0.00029863,2]
[377504357,1754431857837,-734.88,0.00029863,2]
[377504358,1754431857847,-460.0,0.00030136,2]
[377504359,1754431857856,-734.88,0.00030136,2]
[377504360,1754431857866,-318535.66148871,0.000304,4]
[377504361,1754431885923,-177.60974618,0.00025757,2]
[377504371,1754431955033,-282.39025382,0.00026546,2]
[377504372,1754431957264,-206.98,0.00026546,2]
[377504373,1754431958871,-264.74249465,0.00026546,2]
[377504374,1754431961901,-460.0,0.00026546,2]
[377504375,1754431964170,-195.25750535,0.00026546,2]
[377504376,1754431966930,-158.7,0.00026536,10]
[377504377,1754431966956,-301.3,0.00026546,2]
[377504378,1754431978269,285.64208,0.00013699,2]
[377504379,1754431978506,285.64208,0.00020187,2]
[377504390,1754432709623,201.5294689,0.00024305,2]
[377504392,1754432912927,5000.0,0.0002512,6]
[377504394,1754432917643,428.85235838,0.000149,2]
[377504396,1754432925386,1000.10273458,0.0002,2]
[377504397,1754432928270,5000.0,0.0002512,6]
[377504398,1754432928301,160.0,0.0002,3]
[377504399,1754432944480,5000.0,0.0002512,6]
[377504400,1754432960312,5000.0,0.0002512,6]
[377504402,1754432971254,330.392549,0.00013699,2]
[377504403,1754432971454,330.392549,0.00020187,2]
[377504404,1754432976321,5000.0,0.0002512,6]
[377504405,1754432991412,5000.0,0.0002512,6]
[377504406,1754433007857,2154.58569783,0.0002512,6]
[377504407,1754433012104,701.71752894,0.00024305,2]
[377504408,1754433017888,275.59,0.00024551,2]
[377504409,1754433018975,1287.94479899,0.0002302,2]
[377504446,1754433032793,-164.71783836,0.00024993,2]
[377504448,1754433032804,-300.0,0.00025056,2]
[377504450,1754433032813,-10000.0,0.00025057,2]
[377504451,1754433032823,-150.0,0.00025093,2]
[377504453,1754433032832,-169.96313,0.00025319,2]
[377504454,1754433032842,-500.0,0.00025558,2]
[377504455,1754433032854,-250.0,0.00025558,2]
[377504456,1754433032864,-500.0,0.00025558,2]
[377504457,1754433032874,-563.01461144,0.00025558,2]
[377504458,1754433032884,-13823.68708968,0.00025561,2]
[377504475,1754433038775,-271.66665479,0.00024992,2]
[377504476,1754433038785,-173.66829016,0.00025557,2]
[377504477,1754433038795,-11076.31291032,0.00025561,2]
[377504478,1754433038805,-159.39858701,0.00025999,2]
[377504479,1754433038814,-16501.0,0.00026,2]
[377504480,1754433038823,-23888.28215184,0.00026,2]
[377504481,1754433038832,-1086.66661915,0.00026308,2]
[377504482,1754433038843,-2444.9998931,0.00026308,2]
[377504483,1754433038854,-4346.66647661,0.00026308,2]
[377504484,1754433038864,-6791.66636971,0.00026308,2]
[377504485,1754433038874,-9770.21957281,0.00026308,2]
[377504486,1754433038884,-456.68304623,0.00026308,2]
[377504487,1754433038894,-1826.7321849,0.00026308,2]
[377504488,1754433038903,-4110.14741603,0.00026308,2]
[377504489,1754433038913,-7299.62181087,0.00026308,2]
[377504490,1754433038924,-598.12548837,0.00026308,2]
[377504491,1754433038938,-2392.50195346,0.00026308,2]
[377504492,1754433038947,-5377.74626589,0.00026308,2]
[377504493,1754433038957,-727.342032,0.00026476,2]
[377504494,1754433038967,-202.07,0.0002649,10]
[377504495,1754433038979,-47926.0,0.000265,2]
[377504496,1754433038990,-368289.32974618,0.00026546,2]
[377504497,1754433038999,-221.61954784,0.00026576,2]
[377504498,1754433039009,-330.392549,0.00026676,2]
[377504499,1754433039019,-3610.91933916,0.00026847,2]
[377504500,1754433039028,-160.0,0.00026906,3]
[377504501,1754433039037,-176.046735,0.00027087,3]
[377504502,1754433039046,-420.0,0.00027142,2]
[377504503,1754433039056,-555.55,0.00027197,2]
[377504504,1754433039065,-221.61954782,0.00027304,2]
[377504505,1754433039075,-506.13681389,0.00027373,2]
[377504506,1754433039084,-500.0,0.00027373,2]
[377504507,1754433039093,-500.0,0.00027373,2]
[377504508,1754433039102,-500.0,0.00027373,2]
[377504509,1754433039111,-500.0,0.00027373,2]
[377504510,1754433039120,-500.0,0.00027373,2]
[377504511,1754433039129,-150.0,0.00027375,2]
[377504512,1754433039139,-564.35631308,0.00027397,2]
[377504513,1754433039149,-460.0,0.00027397,2]
[377504514,1754433039158,-460.0,0.00027397,2]
[377504515,1754433039168,-475.27677854,0.00027397,2]
[377504516,1754433039178,-460.0,0.00027397,2]
[377504517,1754433039188,-460.0,0.00027397,2]
[377504518,1754433039198,-467.53378666,0.00027397,2]
[377504519,1754433039209,-500.0,0.00027397,2]
[377504520,1754433039219,-460.0,0.00027397,2]
[377504521,1754433039229,-460.0,0.00027397,2]
[377504522,1754433039239,-460.0,0.00027397,2]
[377504523,1754433039249,-460.0,0.00027397,2]
[377504524,1754433039258,-460.0,0.00027397,2]
[377504525,1754433039268,-460.0,0.00027397,2]
[377504526,1754433039277,-460.0,0.00027397,2]
[377504527,1754433039286,-460.0,0.00027397,2]
[377504528,1754433039296,-460.0,0.00027397,2]
[377504529,1754433039305,-460.0,0.00027397,2]
[377504530,1754433039315,-460.0,0.00027397,2]
[377504531,1754433039325,-460.0,0.00027397,2]
[377504532,1754433039334,-460.0,0.00027397,2]
[377504533,1754433039344,-460.0,0.00027397,2]
[377504534,1754433039354,-921.54,0.00027397,2]
[377504535,1754433039363,-460.0,0.00027397,2]
[377504536,1754433039373,-460.0,0.00027397,2]
[377504537,1754433039383,-460.0,0.00027397,2]
[377504538,1754433039393,-460.0,0.00027397,2]
[377504539,1754433039402,-460.0,0.00027397,2]
[377504540,1754433039412,-1015.16,0.00027397,2]
[377504541,1754433039423,-460.0,0.00027397,2]
[377504542,1754433039433,-460.0,0.00027397,2]
[377504543,1754433039442,-460.0,0.00027397,2]
[377504544,1754433039452,-464.88986533,0.00027397,2]
[377504545,1754433039461,-460.0,0.00027397,2]
[377504546,1754433039471,-460.0,0.00027397,2]
[377504547,1754433039480,-483.99,0.00027397,2]
[377504548,1754433039490,-460.0,0.00027397,2]
[377504549,1754433039499,-460.0,0.00027397,2]
[377504550,1754433039509,-628.9,0.00027397,2]
[377504551,1754433039518,-468.13077803,0.00027397,2]
[377504552,1754433039527,-984.13,0.00027397,2]
[377504553,1754433039536,-472.87804332,0.00027397,2]
[377504554,1754433039546,-706.66,0.00027397,2]
[377504555,1754433039555,-156.7364319,0.00027397,2]
[377504556,1754433039564,-460.0,0.00027397,2]
[377504557,1754433039574,-460.0,0.00027397,2]
[377504558,1754433039583,-460.0,0.00027397,2]
[377504559,1754433039593,-460.0,0.00027397,2]
[377504560,1754433039602,-460.0,0.00027397,2]
[377504561,1754433039612,-460.0,0.00027397,2]
[377504562,1754433039621,-460.0,0.00027397,2]
[377504563,1754433039630,-460.0,0.00027397,2]
[377504564,1754433039640,-460.0,0.00027397,2]
[377504565,1754433039649,-460.0,0.00027397,2]
[377504566,1754433039658,-460.0,0.00027397,2]
[377504567,1754433039667,-1411.39,0.00027397,2]
[377504568,1754433039678,-460.0,0.00027397,2]
[377504569,1754433039687,-460.0,0.00027397,2]
[377504570,1754433039696,-460.0,0.00027397,2]
[377504571,1754433039705,-52590.9,0.00027397,2]
[377504572,1754433039714,-1323.3,0.00027397,2]
[377504573,1754433039724,-460.0,0.00027397,2]
[377504574,1754433039733,-460.0,0.00027397,2]
[377504575,1754433039742,-460.0,0.00027397,2]
[377504576,1754433039751,-460.0,0.00027397,2]
[377504577,1754433039760,-490.46472836,0.00027397,2]
[377504578,1754433039769,-460.0,0.00027397,2]
[377504579,1754433039779,-480.12,0.00027397,2]
[377504580,1754433039788,-460.0,0.00027397,2]
[377504581,1754433039797,-460.0,0.00027397,2]
[377504582,1754433039806,-460.0,0.00027397,2]
[377504583,1754433039815,-460.0,0.00027397,2]
[377504584,1754433039824,-460.0,0.00027397,2]
[377504585,1754433039834,-460.0,0.00027397,2]
[377504586,1754433039857,-460.0,0.00027397,2]
[377504587,1754433039866,-473.60711005,0.00027397,2]
[377504588,1754433039876,-460.0,0.00027397,2]
[377504589,1754433039887,-854.35,0.00027397,2]
[377504590,1754433039897,-460.0,0.00027397,2]
[377504591,1754433039906,-659.7,0.00027397,2]
[377504592,1754433039916,-460.0,0.00027397,2]
[377504593,1754433039928,-460.0,0.00027397,2]
[377504594,1754433039938,-462.50287703,0.00027397,2]
[377504595,1754433039948,-460.0,0.00027397,2]
[377504596,1754433039958,-460.0,0.00027397,2]
[377504597,1754433039968,-461.93760902,0.00027397,2]
[377504598,1754433039977,-460.0,0.00027397,2]
[377504599,1754433039987,-1159.34,0.00027397,2]
[377504600,1754433040225,-218.13481286,0.00027397,2]
[377504602,1754433040236,-469.33498672,0.00027397,2]
[377504605,1754433040246,-1164.38,0.00027397,2]
[377504607,1754433040255,-460.0,0.00027397,2]
[377504608,1754433040264,-1010.68,0.00027397,2]
[377504609,1754433040274,-462.97981263,0.00027397,2]
[377504610,1754433040284,-460.0,0.00027397,2]
[377504611,1754433040293,-460.0,0.00027397,2]
[377504612,1754433040302,-460.0,0.00027397,2]
[377504613,1754433040312,-460.0,0.00027397,2]
[377504614,1754433040322,-354.22544669,0.00027397,2]
[377504615,1754433040331,-460.0,0.00027397,2]
[377504616,1754433040340,-460.0,0.00027397,2]
[377504617,1754433040349,-451.27962553,0.00027397,2]
[377504618,1754433040359,-500.0,0.00027397,2]
[377504619,1754433040368,-460.0,0.00027397,2]
[377504620,1754433040377,-425.20486305,0.00027397,2]
[377504621,1754433040387,-460.0,0.00027397,2]
[377504622,1754433040396,-460.0,0.00027397,2]
[377504623,1754433040406,-764.79,0.00027397,2]
[377504624,1754433040416,-1255.48,0.00027397,2]
[377504625,1754433040429,-460.0,0.00027397,2]
[377504626,1754433040438,-460.0,0.00027397,2]
[377504627,1754433040448,-504.96,0.00027397,2]
[377504628,1754433040458,-460.0,0.00027397,2]